bitfinex/quotes_BTCUSD_20240613
["timestamp","ask_amount","ask_price","bid_price","bid_amount"]
[1718254023621,0.17,67538.0,67519.0,0.1407]
[1718254023622,0.89880022,67538.0,67519.0,0.1407]
[1718254023828,0.02,67521.0,67512.0,0.4774]
[1718254024038,0.02,67521.0,67502.0,0.0622]
[1718254024039,0.56703255,67521.0,67502.0,0.0622]
[1718254024247,1.03154878,67521.0,67498.0,0.4774]
[1718254024560,1.27543451,67521.0,67498.0,0.4774]
[1718254024937,1.38303451,67521.0,67498.0,0.4774]
[1718254025142,1.28333963,67521.0,67498.0,0.4774]
[1718254025340,1.28333963,67521.0,67496.0,0.09190338]
[1718254025341,1.14361262,67514.0,67496.0,0.009416]
[1718254025570,1.79563782,67514.0,67496.0,0.009416]
[1718254025978,1.81863782,67514.0,67496.0,0.009416]
[1718254026180,0.71851575,67514.0,67501.0,0.0607]
[1718254026395,0.61013255,67514.0,67501.0,0.0607]
[1718254026593,0.44651993,67514.0,67503.0,0.0814]
[1718254026796,0.25831993,67514.0,67507.0,0.00028738]
[1718254027003,0.25831993,67514.0,67508.0,0.00028738]
[1718254027004,0.27231993,67514.0,67508.0,0.00028738]
[1718254027315,0.24403194,67514.0,67508.0,0.00028738]
[1718254027520,0.24403194,67514.0,67511.0,0.00028738]
[1718254027521,0.25803194,67514.0,67511.0,0.00028738]
[1718254027747,0.25803194,67514.0,67513.0,0.074216]
[1718254027748,0.028,67514.0,67513.0,0.074216]
[1718254027886,0.014,67514.0,67513.0,0.074216]
[1718254028798,0.028,67514.0,67513.0,0.074216]
[1718254029000,0.014,67514.0,67513.0,0.074216]
[1718254029415,0.028,67514.0,67513.0,0.074216]
[1718254030238,0.028,67514.0,67513.0,0.009416]
[1718254031261,0.04872,67514.0,67513.0,0.009416]
[1718254031696,0.04872,67514.0,67513.0,0.00970338]
[1718254031895,0.028,67514.0,67513.0,0.00970338]
[1718254032115,0.028,67514.0,67513.0,0.08520338]
[1718254034565,0.028,67514.0,67513.0,0.084916]
[1718254035216,0.028,67514.0,67513.0,0.009416]
[1718254035389,0.17231993,67514.0,67513.0,0.009416]
[1718254035733,0.20747192,67514.0,67513.0,0.009416]
[1718254037541,0.20718359,67514.0,67513.0,0.009416]
[1718254037753,0.22689621,67514.0,67513.0,0.009416]
[1718254037966,0.24989621,67514.0,67513.0,0.009416]
[1718254038796,0.29989621,67514.0,67513.0,0.009416]
[1718254039008,0.39989621,67514.0,67513.0,0.009416]
[1718254039209,0.48269621,67514.0,67513.0,0.009416]
[1718254039582,0.64649621,67514.0,67513.0,0.009416]
[1718254039995,0.54649621,67514.0,67513.0,0.009416]
[1718254042438,0.64649621,67514.0,67513.0,0.009416]
[1718254042644,1.05705421,67514.0,67513.0,0.009416]
[1718254042859,1.31285421,67514.0,67513.0,0.009416]
[1718254043108,1.31285421,67514.0,67492.0,0.009416]
[1718254043109,0.06971262,67497.0,67492.0,0.009416]
[1718254043327,0.17371993,67497.0,67492.0,0.009416]
[1718254043532,0.20872535,67497.0,67494.0,0.0624]
[1718254043742,0.30872535,67497.0,67494.0,0.0624]
[1718254043952,0.4131611,67497.0,67494.0,0.0624]
[1718254044164,0.14414166,67497.0,67496.0,0.00970338]
[1718254044586,0.15814166,67497.0,67496.0,0.00970338]
[1718254044795,0.1291,67505.0,67499.0,0.00028738]
[1718254044998,0.14431993,67504.0,67499.0,0.00028738]
[1718254045170,0.1,67503.0,67499.0,0.00028738]
[1718254045332,0.1,67503.0,67496.0,0.009416]
[1718254045333,0.14431993,67502.0,67500.0,0.00028738]
[1718254045924,0.14431993,67502.0,67501.0,0.00028738]
[1718254046116,0.14431993,67502.0,67496.0,0.009416]
[1718254046117,0.14431993,67502.0,67496.0,0.00970338]
[1718254046328,0.14431993,67502.0,67496.0,0.009416]
[1718254046329,0.07215996,67499.0,67496.0,0.009416]
[1718254046551,0.14431993,67498.0,67496.0,0.009416]
[1718254046753,0.14431993,67498.0,67496.0,0.00970338]
[1718254047621,0.0291,67505.0,67500.0,0.00028738]
[1718254047622,0.014,67503.0,67500.0,0.00028738]
[1718254047835,0.14431993,67502.0,67500.0,0.00028738]
[1718254048848,0.14431993,67502.0,67501.0,0.00028738]
[1718254049237,0.14431993,67502.0,67496.0,0.00970338]
[1718254049457,0.07215996,67497.0,67496.0,0.009416]
[1718254049864,0.23812788,67497.0,67496.0,0.009416]
[1718254050279,0.2808405,67497.0,67496.0,0.009416]
[1718254050482,0.3808405,67497.0,67496.0,0.009416]
[1718254050683,0.66856292,67497.0,67496.0,0.009416]
[1718254050886,0.68156292,67497.0,67496.0,0.009416]
[1718254051129,0.78525044,67497.0,67496.0,0.009416]
[1718254051329,0.78524726,67497.0,67496.0,0.009416]
[1718254051539,0.67843931,67497.0,67496.0,0.009416]
[1718254051784,0.27100745,67497.0,67496.0,0.009416]
[1718254052010,0.16731993,67497.0,67496.0,0.009416]
[1718254052238,0.18131993,67497.0,67496.0,0.009416]
[1718254052444,0.16731993,67497.0,67496.0,0.009416]
[1718254052762,0.30428398,67497.0,67496.0,0.009416]
[1718254053141,0.68500799,67497.0,67496.0,0.009416]
[1718254053627,0.67100799,67497.0,67496.0,0.009416]
[1718254054087,0.65700799,67497.0,67496.0,0.009416]
[1718254054556,0.67100799,67497.0,67496.0,0.009416]
[1718254054764,0.69072061,67497.0,67496.0,0.009416]
[1718254054964,0.70472061,67497.0,67496.0,0.009416]
[1718254055891,0.76942061,67497.0,67496.0,0.009416]
[1718254056122,1.10202061,67497.0,67496.0,0.009416]
[1718254056347,1.1796043,67497.0,67496.0,0.009416]
[1718254056554,1.1936043,67497.0,67496.0,0.009416]
[1718254056964,1.1936043,67497.0,67492.0,0.009416]
[1718254056965,0.76971262,67493.0,67492.0,0.00858824]
[1718254057186,1.80798149,67493.0,67492.0,0.00858824]
[1718254057401,2.31790228,67493.0,67492.0,0.00157002]
[1718254057617,2.31790228,67493.0,67484.0,0.009427]
[1718254057618,0.7,67485.0,67484.0,0.009427]
[1718254057864,0.67900973,67485.0,67484.0,0.009427]
[1718254058336,0.1,67485.0,67484.0,0.01000191]
[1718254058574,0.24431993,67485.0,67484.0,0.009427]
[1718254058784,0.14431993,67485.0,67484.0,0.009427]
[1718254059164,0.15831993,67485.0,67484.0,0.009427]
[1718254059666,0.16731993,67485.0,67484.0,0.009427]
[1718254059888,0.18131993,67485.0,67484.0,0.009427]
[1718254060315,0.19103255,67485.0,67484.0,0.009427]
[1718254060537,0.29103255,67485.0,67484.0,0.009427]
[1718254060767,0.78793586,67485.0,67484.0,0.009427]
[1718254061033,0.83995912,67485.0,67484.0,0.009427]
[1718254061213,0.86195912,67485.0,67484.0,0.009427]
[1718254061673,0.88995912,67485.0,67484.0,0.009427]
[1718254061879,0.87595912,67485.0,67484.0,0.009427]
[1718254062308,0.88995912,67485.0,67484.0,0.009427]
[1718254062514,0.87595912,67485.0,67484.0,0.009427]
[1718254062927,0.88995912,67485.0,67484.0,0.009427]
[1718254063165,0.87595912,67485.0,67484.0,0.009427]
[1718254063381,0.88995912,67485.0,67484.0,0.009427]
[1718254063639,0.88995912,67485.0,67466.0,0.01201894]
[1718254063640,0.02,67480.0,67466.0,0.01201894]
[1718254063853,0.07215996,67476.0,67466.0,0.01201894]
[1718254064066,0.14431993,67475.0,67466.0,0.01201894]
[1718254064907,0.14431993,67475.0,67456.0,0.0804]
[1718254065122,0.07215996,67469.0,67456.0,0.0804]
[1718254065340,0.02,67466.0,67456.0,0.0804]
[1718254065548,0.18818792,67465.0,67456.0,0.0804]
[1718254065751,0.20818792,67465.0,67456.0,0.0804]
[1718254065960,0.07215996,67462.0,67456.0,0.0804]
[1718254066168,0.14431993,67461.0,67456.0,0.0804]
[1718254066591,0.14431993,67461.0,67457.0,0.0616]
[1718254066804,0.17035472,67461.0,67457.0,0.0616]
[1718254067011,0.14431993,67461.0,67457.0,0.0616]
[1718254067666,0.14403183,67461.0,67457.0,0.0616]
[1718254068107,0.15603183,67461.0,67457.0,0.0616]
[1718254068480,0.16903183,67461.0,67457.0,0.0616]
[1718254068742,0.16903183,67461.0,67448.0,0.4774]
[1718254068743,0.19953781,67461.0,67448.0,0.4774]
[1718254068966,0.19953781,67461.0,67447.0,0.0825]
[1718254068967,0.07215996,67455.0,67447.0,0.0825]
[1718254069180,0.14431993,67454.0,67447.0,0.0825]
[1718254069380,0.16596792,67454.0,67447.0,0.0825]
[1718254070939,0.07215996,67448.0,67447.0,0.0825]
[1718254071775,0.17996792,67454.0,67447.0,0.0825]
[1718254071972,0.19296792,67454.0,67447.0,0.0825]
[1718254072178,0.17996792,67454.0,67447.0,0.0825]
[1718254072379,0.17996792,67454.0,67445.0,0.009427]
[1718254072380,0.02521279,67453.0,67445.0,0.009427]
[1718254072611,0.08515996,67448.0,67446.0,0.1469]
[1718254072802,0.08515996,67448.0,67445.0,0.009427]
[1718254072803,0.14431993,67447.0,67445.0,0.009427]
[1718254072953,0.02521279,67453.0,67445.0,0.009427]
[1718254073160,0.14431993,67452.0,67446.0,0.0663]
[1718254073387,0.112,67454.0,67447.0,0.0756]
[1718254073388,0.014,67454.0,67447.0,0.0756]
[1718254073795,0.014,67453.0,67447.0,0.0756]
[1718254074244,0.014,67454.0,67447.0,0.0756]
[1718254074644,0.07215996,67455.0,67447.0,0.0756]
[1718254074858,0.03050598,67461.0,67448.0,0.0616]
[1718254075111,0.14431993,67457.0,67448.0,0.0616]
[1718254075318,0.03050598,67461.0,67450.0,0.02]
[1718254075566,0.0147,67464.0,67451.0,0.1612]
[1718254075822,0.50295979,67475.0,67458.0,0.02]
[1718254075823,0.0291,67475.0,67458.0,0.02]
[1718254075968,0.57727972,67474.0,67461.0,0.02]
[1718254076283,0.2198739,67474.0,67459.0,0.142]
[1718254076461,0.14431993,67474.0,67461.0,0.02]
[1718254076726,0.14431993,67474.0,67459.0,0.142]
[1718254077577,0.14403148,67474.0,67461.0,0.02]
[1718254077779,0.15103148,67474.0,67461.0,0.02]
[1718254077981,0.15103148,67474.0,67462.0,0.02]
[1718254078189,0.07215996,67469.0,67463.0,0.0817]
[1718254078436,0.007,67474.0,67466.0,0.0766]
[1718254078576,0.007,67474.0,67467.0,0.06]
[1718254078983,0.008,67474.0,67467.0,0.06]
[1718254079419,0.008,67474.0,67461.0,0.001]
[1718254079420,0.008,67474.0,67469.0,0.1417]
[1718254079595,0.001,67474.0,67469.0,0.1617]
[1718254080434,0.001,67474.0,67473.0,0.02]
[1718254080634,0.001,67474.0,67471.0,0.02]
[1718254080841,0.001,67474.0,67470.0,0.02]
[1718254081017,0.17215996,67485.0,67469.0,0.1617]
[1718254081220,0.17010429,67484.0,67469.0,0.1617]
[1718254081439,0.007,67474.0,67471.0,0.02]
[1718254081841,0.007,67474.0,67473.0,0.02]
[1718254082042,0.015,67474.0,67473.0,0.0977]
[1718254082238,0.015,67474.0,67473.0,0.1617]
[1718254083005,0.17215996,67485.0,67479.0,0.1417]
[1718254083179,0.18615996,67485.0,67479.0,0.1417]
[1718254083383,0.114,67485.0,67479.0,0.14166]
[1718254083702,0.1,67485.0,67482.0,0.02]
[1718254083914,0.1,67485.0,67483.0,0.02]
[1718254084318,0.1,67485.0,67484.0,0.0818]
[1718254084496,0.1,67485.0,67484.0,0.08998]
[1718254084731,0.114,67485.0,67484.0,0.0818]
[1718254085122,0.1,67485.0,67484.0,0.0818]
[1718254085463,0.101,67485.0,67484.0,0.0818]
[1718254085669,0.1,67485.0,67484.0,0.0818]
[1718254085873,0.114,67485.0,67484.0,0.0818]
[1718254086077,0.115,67485.0,67484.0,0.0818]
[1718254086527,0.101,67485.0,67484.0,0.17288]
[1718254086758,0.101,67485.0,67484.0,0.1647]
[1718254087145,0.101,67485.0,67484.0,0.1447]
[1718254087552,0.10042921,67485.0,67484.0,0.1447]
[1718254087764,0.10042921,67485.0,67474.0,0.1368]
[1718254088188,0.10042921,67485.0,67476.0,0.02]
[1718254088388,0.10042921,67485.0,67477.0,0.02]
[1718254089047,0.09942921,67485.0,67477.0,0.02]
[1718254089291,0.10042921,67485.0,67477.0,0.02]
[1718254089434,0.10142921,67485.0,67477.0,0.02]
[1718254089840,0.10042921,67485.0,67474.0,0.1368]
[1718254090018,0.10042921,67485.0,67474.0,0.20022]
[1718254090243,0.10142921,67485.0,67477.0,0.001]
[1718254090751,0.10042921,67485.0,67474.0,0.1368]
[1718254091098,0.10242921,67485.0,67477.0,0.002]
[1718254091295,0.10042921,67485.0,67474.0,0.1378]
[1718254091634,0.10142921,67485.0,67477.0,0.002]
[1718254091848,0.10142921,67485.0,67474.0,0.1578]
[1718254092046,0.10142921,67485.0,67474.0,0.1378]
[1718254092275,0.10242921,67485.0,67474.0,0.1398]
[1718254092446,0.10142921,67485.0,67474.0,0.1388]
[1718254092636,0.09942921,67485.0,67474.0,0.1368]
[1718254092836,0.10042921,67485.0,67477.0,0.002]
[1718254093198,0.10142921,67485.0,67477.0,0.002]
[1718254093415,0.10042921,67485.0,67477.0,0.002]
[1718254093638,0.10142921,67485.0,67477.0,0.002]
[1718254093858,0.10228921,67485.0,67478.0,0.1396]
[1718254094288,0.10128921,67485.0,67478.0,0.1396]
[1718254094710,0.10128921,67485.0,67480.0,0.02]
[1718254094915,0.10028921,67485.0,67480.0,0.02]
[1718254095117,0.10028921,67485.0,67478.0,0.1396]
[1718254095118,0.10028921,67485.0,67478.0,0.1596]
[1718254095327,0.10028921,67485.0,67480.0,0.02]
[1718254095328,0.10128921,67485.0,67480.0,0.02]
[1718254095550,0.10028921,67485.0,67481.0,0.02]
[1718254095986,0.10228921,67485.0,67481.0,0.02]
[1718254096212,0.10228921,67485.0,67484.0,0.02]
[1718254096213,0.10128921,67485.0,67484.0,0.02]
[1718254096425,0.10028921,67485.0,67484.0,0.02]
[1718254096633,0.10128921,67485.0,67484.0,0.02]
[1718254096838,0.10128921,67485.0,67484.0,0.1673]
[1718254097268,0.10128921,67485.0,67484.0,0.16462273]
[1718254097269,0.10028921,67485.0,67484.0,0.16462273]
[1718254097475,0.09973166,67485.0,67484.0,0.16462273]
[1718254097698,0.10373166,67485.0,67484.0,0.18462273]
[1718254098538,0.10673166,67485.0,67484.0,0.18462273]
[1718254098744,0.10573166,67485.0,67484.0,0.18462273]
[1718254098994,0.09973166,67485.0,67484.0,0.18462273]
[1718254099193,0.10073166,67485.0,67484.0,0.18462273]
[1718254099611,0.10073166,67485.0,67484.0,0.32894266]
[1718254099830,0.10073166,67485.0,67484.0,0.42894266]
[1718254100071,0.10073166,67485.0,67484.0,0.53494266]
[1718254100297,0.10073166,67485.0,67484.0,0.32894266]
[1718254101649,0.09973166,67485.0,67484.0,0.32894266]
[1718254102487,0.10073166,67485.0,67484.0,0.32894266]
[1718254102695,0.10173166,67485.0,67484.0,0.33094266]
[1718254103325,0.10173166,67485.0,67484.0,0.1593]
[1718254103743,0.10173166,67485.0,67484.0,0.1493]
[1718254104179,0.10073166,67485.0,67484.0,0.1693]
[1718254104385,0.10073166,67485.0,67484.0,0.1673]
[1718254104592,0.09973166,67485.0,67484.0,0.1673]
[1718254104764,0.10073166,67485.0,67484.0,0.1693]
[1718254104970,0.10073166,67485.0,67484.0,0.19123]
[1718254105178,0.10073166,67485.0,67484.0,0.16923]
[1718254105179,0.09965875,67485.0,67484.0,0.16923]
[1718254105357,0.09965875,67485.0,67484.0,0.18923]
[1718254105573,0.10165875,67485.0,67484.0,0.18923]
[1718254106173,0.10165875,67485.0,67484.0,0.16923]
[1718254106672,0.10165875,67485.0,67477.0,0.1]
[1718254106673,0.10065875,67485.0,67478.0,0.1446]
[1718254107659,0.09937656,67485.0,67478.0,0.1446]
[1718254108073,0.10037656,67485.0,67478.0,0.1466]
[1718254108288,0.10037656,67485.0,67481.0,0.02]
[1718254108897,0.09937656,67485.0,67481.0,0.02]
[1718254109103,0.10037656,67485.0,67481.0,0.02]
[1718254109324,0.10137656,67485.0,67481.0,0.02]
[1718254109551,0.10037656,67485.0,67481.0,0.01646]
[1718254109953,0.10137656,67485.0,67481.0,0.01646]
[1718254110582,0.10037656,67485.0,67481.0,0.01646]
[1718254110872,0.10137656,67485.0,67481.0,0.002]
[1718254111665,0.10137656,67485.0,67472.0,0.54483527]
[1718254111666,0.07215996,67484.0,67474.0,0.1411]
[1718254112069,0.07215996,67484.0,67474.0,0.0796]
[1718254113277,0.07315996,67484.0,67474.0,0.0796]
[1718254114254,0.07315996,67484.0,67472.0,0.4774]
[1718254114255,0.0656,67476.0,67472.0,0.4774]
[1718254114461,0.0656,67476.0,67474.0,0.002]
[1718254115281,0.0656,67476.0,67472.0,0.4774]
[1718254115874,0.0806,67476.0,67472.0,0.4774]
[1718254116076,0.0806,67476.0,67453.0,0.02]
[1718254116077,0.25346218,67475.0,67461.0,0.4774]
[1718254116285,0.07215996,67468.0,67461.0,0.4774]
[1718254117056,0.0656,67476.0,67464.0,0.02]
[1718254117276,0.1108064,67475.0,67461.0,0.4774]
[1718254117502,0.0796,67476.0,67461.0,0.4774]
[1718254117714,0.07931209,67476.0,67461.0,0.4774]
[1718254118195,0.06531209,67476.0,67461.0,0.4774]
[1718254118393,0.001,67468.0,67461.0,0.4794]
[1718254118803,0.06531209,67476.0,67461.0,0.4774]
[1718254119213,0.06631209,67476.0,67461.0,0.4774]
[1718254119466,0.06631209,67476.0,67461.0,0.54171]
[1718254119625,0.06631209,67476.0,67461.0,0.06431]
[1718254119853,0.02,67469.0,67457.0,0.1157]
[1718254120094,0.02,67467.0,67457.0,0.26001993]
[1718254120441,0.02,67464.0,67457.0,0.1157]
[1718254120618,0.02,67463.0,67454.0,0.4774]
[1718254120832,0.02,67463.0,67461.0,0.002]
[1718254121288,0.0616,67464.0,67461.0,0.002]
[1718254121289,0.02,67462.0,67461.0,0.002]
[1718254121665,0.02,67460.0,67454.0,0.4774]
[1718254122207,0.02,67458.0,67457.0,0.002]
[1718254122409,0.02,67457.0,67454.0,0.4774]
[1718254123067,0.02,67462.0,67454.0,0.4774]
[1718254123536,0.0616,67464.0,67454.0,0.4774]
[1718254123537,0.0816,67464.0,67454.0,0.4774]
[1718254123749,0.006,67462.0,67454.0,0.4774]
[1718254123961,0.013,67462.0,67454.0,0.4774]
[1718254124168,0.0616,67464.0,67454.0,0.4774]
[1718254124369,0.0816,67464.0,67454.0,0.4774]
[1718254124647,0.002,67462.0,67454.0,0.4794]
[1718254125242,0.001,67462.0,67454.0,0.4794]
[1718254125392,0.0616,67464.0,67454.0,0.4774]
[1718254125603,0.0616,67464.0,67454.0,0.002]
[1718254125807,0.0616,67464.0,67453.0,0.04752292]
[1718254126010,0.0816,67464.0,67453.0,0.04752292]
[1718254126415,0.02,67462.0,67453.0,0.04752292]
[1718254127243,0.021,67462.0,67454.0,0.002]
[1718254127595,0.01971781,67462.0,67453.0,0.04752292]
[1718254128045,0.02071781,67462.0,67453.0,0.04952292]
[1718254128253,0.001,67462.0,67453.0,0.04752292]
[1718254128494,0.002,67462.0,67453.0,0.04752292]
[1718254128723,0.08131781,67464.0,67462.0,0.008]
[1718254129124,0.15215996,67466.0,67462.0,0.008]
[1718254129259,0.01971781,67472.0,67462.0,0.0864]
[1718254129664,0.1379,67476.0,67463.0,0.0606]
[1718254129665,0.01971781,67474.0,67463.0,0.0606]
[1718254129868,0.01,67473.0,67463.0,0.0606]
[1718254130064,0.009,67464.0,67463.0,0.06652868]
[1718254130275,0.009,67464.0,67463.0,0.0606]
[1718254130937,0.01971781,67473.0,67463.0,0.0606]
[1718254131560,0.01,67464.0,67463.0,0.0606]
[1718254131773,0.01,67464.0,67463.0,0.0745]
[1718254132214,0.062,67476.0,67463.0,0.0606]
[1718254132434,0.062,67476.0,67463.0,0.06652857]
[1718254132673,0.0467015,67489.0,67470.0,0.1792]
[1718254132883,0.0467015,67489.0,67471.0,0.14732743]
[1718254132884,0.01971781,67489.0,67471.0,0.14732743]
[1718254133093,0.01971781,67489.0,67472.0,0.05708474]
[1718254133312,0.059298,67490.0,67474.0,0.1]
[1718254133534,0.1,67502.0,67472.0,0.20140467]
[1718254133535,0.10181781,67495.0,67475.0,0.42944719]
[1718254133745,0.01971781,67495.0,67478.0,0.1451]
[1718254133971,0.01971781,67495.0,67479.0,0.00592699]
[1718254134207,0.01971781,67495.0,67480.0,0.04745469]
[1718254134842,0.10037656,67485.0,67480.0,0.04745469]
[1718254135053,0.10137656,67485.0,67480.0,0.04745469]
[1718254135257,0.09937656,67485.0,67480.0,0.04745469]
[1718254135763,0.10137656,67485.0,67480.0,0.05245469]
[1718254135981,0.10137656,67485.0,67481.0,0.03418746]
[1718254137476,0.10037656,67485.0,67481.0,0.03418746]
[1718254137710,0.10037656,67485.0,67481.0,0.03618746]
[1718254137711,0.09980572,67485.0,67481.0,0.03618746]
[1718254138789,0.10080572,67485.0,67481.0,0.03818746]
[1718254139005,0.10080572,67485.0,67482.0,0.03750621]
[1718254140519,0.09980572,67485.0,67482.0,0.03750621]
[1718254140755,0.09880572,67485.0,67482.0,0.03950621]
[1718254140972,0.09980572,67485.0,67482.0,0.03950621]
[1718254141176,0.10080572,67485.0,67482.0,0.004]
[1718254142845,0.09980572,67485.0,67482.0,0.002]
[1718254143686,0.09880572,67485.0,67478.0,0.28941993]
[1718254144126,0.09980572,67485.0,67482.0,0.002]
[1718254144296,0.10080572,67485.0,67482.0,0.002]
[1718254144687,0.10180572,67485.0,67482.0,0.004]
[1718254144915,0.10080572,67485.0,67482.0,0.002]
[1718254145315,0.10180572,67485.0,67482.0,0.002]
[1718254145763,0.10080572,67485.0,67482.0,0.002]
[1718254146205,0.10180572,67485.0,67482.0,0.004]
[1718254146417,0.09187777,67484.0,67482.0,0.004]
[1718254146643,0.09187777,67484.0,67472.0,0.00017841]
[1718254147056,0.01971781,67481.0,67472.0,0.00017841]
[1718254147317,0.01971781,67482.0,67472.0,0.00017841]
[1718254147517,0.14397128,67485.0,67472.0,0.00017841]
[1718254147717,0.14368909,67485.0,67472.0,0.00017841]
[1718254147962,0.001,67484.0,67472.0,0.00217841]
[1718254148162,0.001,67484.0,67472.0,0.00017841]
[1718254148577,0.001,67482.0,67472.0,0.00217841]
[1718254149000,0.001,67482.0,67472.0,0.05517978]
[1718254149201,0.01971781,67480.0,67472.0,0.00017841]
[1718254149356,0.01971781,67480.0,67472.0,0.00217841]
[1718254150002,0.142,67475.0,67472.0,0.00017841]
[1718254150195,0.01971781,67473.0,67472.0,0.00017841]
[1718254150676,0.142,67475.0,67472.0,0.00017841]
[1718254151524,0.008,67473.0,67472.0,0.00017841]
[1718254151731,0.001,67482.0,67472.0,0.14347841]
[1718254151956,0.0827,67483.0,67473.0,0.02027551]
[1718254152178,0.014,67475.0,67473.0,0.02027551]
[1718254152410,0.028,67475.0,67473.0,0.01434784]
[1718254152851,0.014,67475.0,67472.0,0.14347841]
[1718254153306,0.014,67475.0,67472.0,0.00017841]
[1718254153507,0.062,67474.0,67472.0,0.00017841]
[1718254153730,0.08171781,67474.0,67472.0,0.00017841]
[1718254153947,0.004,67473.0,67472.0,0.00017841]
[1718254154160,0.1401,67474.0,67472.0,0.00017841]
[1718254155256,0.007,67473.0,67472.0,0.00017841]
[1718254155465,0.1401,67474.0,67472.0,0.00017841]
[1718254155667,0.1461,67474.0,67472.0,0.00017841]
[1718254156086,0.1401,67474.0,67472.0,0.00017841]
[1718254156295,0.0639,67478.0,67472.0,0.00017841]
[1718254156503,0.005,67473.0,67472.0,0.00017841]
[1718254157595,0.00471206,67473.0,67472.0,0.00017841]
[1718254158242,0.00871206,67473.0,67472.0,0.00017841]
[1718254159318,0.004,67473.0,67472.0,0.00017841]
[1718254160436,0.004,67473.0,67472.0,0.00112441]
[1718254160837,0.007,67473.0,67472.0,0.00112441]
[1718254161038,0.003,67473.0,67472.0,0.00112441]
[1718254161318,0.006,67473.0,67472.0,0.00112441]
[1718254164251,0.0639,67483.0,67472.0,0.00112441]
[1718254164453,0.002,67473.0,67472.0,0.00112441]
[1718254164858,0.001,67473.0,67472.0,0.00112441]
[1718254165292,0.002,67473.0,67472.0,0.00112441]
[1718254165439,0.001,67473.0,67472.0,0.00112441]
[1718254165851,0.001,67473.0,67472.0,0.30343482]
[1718254166054,0.001,67473.0,67472.0,0.37408849]
[1718254166652,0.00028909,67485.0,67472.0,0.37408849]
[1718254166987,0.00028909,67485.0,67473.0,0.40044337]
[1718254167114,0.00028909,67485.0,67474.0,0.07692344]
[1718254167496,0.00028909,67485.0,67476.0,0.1616]
[1718254167702,0.00028909,67485.0,67477.0,0.22011993]
[1718254168353,0.00028909,67485.0,67478.0,0.1792]
[1718254168565,0.00028909,67485.0,67479.0,0.13861032]
[1718254168805,0.00028909,67485.0,67479.0,0.0616]
[1718254169055,0.00028909,67485.0,67480.0,0.07686377]
[1718254169274,0.00028909,67485.0,67481.0,0.14431993]
[1718254169486,0.00028909,67485.0,67483.0,0.1792]
[1718254169487,0.01028909,67485.0,67483.0,0.1792]
[1718254169700,0.01028909,67485.0,67484.0,0.3689837]
[1718254169911,0.02028909,67485.0,67484.0,0.3689837]
[1718254170450,0.01028909,67485.0,67484.0,0.3689837]
[1718254170667,0.01028909,67485.0,67484.0,0.55083354]
[1718254170926,0.01028909,67485.0,67484.0,0.55161157]
[1718254170927,0.01128909,67485.0,67484.0,0.55161157]
[1718254171345,0.00028909,67485.0,67484.0,0.55161157]
[1718254171558,0.0010069,67485.0,67484.0,0.55161157]
[1718254171795,0.0110069,67485.0,67484.0,0.55161157]
[1718254171996,0.0010069,67485.0,67484.0,0.55161157]
[1718254172232,0.0010069,67485.0,67484.0,0.45161157]
[1718254172434,0.0020069,67485.0,67484.0,0.55261157]
[1718254173272,0.0020069,67485.0,67484.0,0.45261157]
[1718254173484,0.0020069,67485.0,67484.0,0.37496977]
[1718254173693,0.0020069,67485.0,67484.0,0.45273656]
[1718254174342,0.0020069,67485.0,67484.0,0.55273656]
[1718254175838,0.0020069,67485.0,67484.0,0.47496977]
[1718254176062,0.0020069,67485.0,67484.0,0.55289459]
[1718254176494,0.0020069,67485.0,67484.0,0.45289459]
[1718254177406,0.0020069,67485.0,67484.0,0.55289459]
[1718254177888,0.00172471,67485.0,67484.0,0.55289459]
[1718254178509,0.00172471,67485.0,67484.0,0.47496977]
[1718254178939,0.00172471,67485.0,67484.0,0.37496977]
[1718254179054,0.00172471,67485.0,67484.0,0.47496977]
[1718254182314,0.00172471,67485.0,67484.0,0.49271755]
[1718254182522,0.05172471,67485.0,67484.0,0.49271755]
[1718254182702,0.05172471,67485.0,67484.0,0.39271755]
[1718254185021,0.05172471,67485.0,67484.0,0.47496977]
[1718254185695,0.05172471,67485.0,67484.0,0.22716977]
[1718254185846,0.05172471,67485.0,67484.0,0.08284984]
[1718254186059,0.05172471,67485.0,67484.0,0.001]
[1718254186960,0.051,67485.0,67484.0,0.001]
[1718254187365,0.051,67485.0,67484.0,0.03089767]
[1718254187597,0.051,67485.0,67484.0,0.013]
[1718254187794,0.0517121,67485.0,67484.0,0.014]
[1718254188003,0.0507121,67485.0,67484.0,0.16112]
[1718254188356,0.0517121,67485.0,67484.0,0.35432]
[1718254188578,0.0527121,67485.0,67484.0,0.43217388]
[1718254188799,0.0517121,67485.0,67484.0,0.43117388]
[1718254189018,0.0517121,67485.0,67484.0,0.34032]
[1718254189019,0.0507121,67485.0,67484.0,0.34032]
[1718254189235,0.0517121,67485.0,67484.0,0.34132]
[1718254189457,0.0497121,67485.0,67484.0,0.48463993]
[1718254190078,0.0497121,67485.0,67484.0,0.56186723]
[1718254190505,0.0507121,67485.0,67484.0,0.57486723]
[1718254190909,0.0507121,67485.0,67484.0,0.56286723]
[1718254191330,0.0517121,67485.0,67484.0,0.57586723]
[1718254192933,0.0517121,67485.0,67484.0,0.57681323]
[1718254193223,0.0525721,67485.0,67484.0,0.57681323]
[1718254194469,0.0525721,67485.0,67484.0,0.0921733]
[1718254196575,0.0525721,67485.0,67484.0,0.11015747]
[1718254197659,0.11728398,67485.0,67484.0,0.11015747]
[1718254197883,0.19388398,67485.0,67484.0,0.0921733]
[1718254198084,0.19388398,67485.0,67484.0,0.014946]
[1718254201145,0.21260179,67485.0,67484.0,0.013946]
[1718254201364,0.21160179,67485.0,67484.0,0.000946]
[1718254201582,0.21260179,67485.0,67484.0,0.001946]
[1718254202007,0.21360179,67485.0,67484.0,0.013946]
[1718254202447,0.21260179,67485.0,67484.0,0.012946]
[1718254202658,0.21160179,67485.0,67484.0,0.000946]
[1718254203120,0.36492172,67485.0,67484.0,0.001946]
[1718254203340,0.67239849,67485.0,67484.0,0.001946]